fUST/lending_fUST_20250708
["ID","MTS","AMOUNT","RATE_DAILY","PERIOD"]
[370179936,1751909442806,-460.0,0.00019452,2]
[370179938,1751909442816,-460.0,0.00019452,2]
[370179940,1751909442825,-460.0,0.00019452,2]
[370179942,1751909442834,-460.0,0.00019452,2]
[370179944,1751909442843,-460.0,0.00019452,2]
[370179946,1751909442853,-460.0,0.00019452,2]
[370179948,1751909442862,-460.0,0.00019452,2]
[370179950,1751909442871,-460.0,0.00019452,2]
[370179952,1751909442880,-393.72276895,0.00019452,2]
[370179954,1751909442889,-1337.48,0.00019452,2]
[370179956,1751909442898,-4110.19,0.00019452,2]
[370179958,1751909442908,-460.0,0.00019452,2]
[370179960,1751909442917,-460.0,0.00019452,2]
[370179962,1751909442926,-1474.12,0.00019452,2]
[370179964,1751909442935,-460.0,0.00019452,2]
[370179965,1751909442945,-460.0,0.00019452,2]
[370179968,1751909442960,-460.0,0.00019452,2]
[370179969,1751909442969,-569.66,0.00019452,2]
[370179971,1751909442979,-460.0,0.00019452,2]
[370179974,1751909442988,-460.0,0.00019452,2]
[370179975,1751909442997,-460.0,0.00019452,2]
[370179978,1751909443007,-941.23,0.00019452,2]
[370179980,1751909443017,-460.0,0.00019452,2]
[370179982,1751909443027,-1566.42,0.00019452,2]
[370179984,1751909443037,-470.91,0.00019452,2]
[370179986,1751909443047,-460.0,0.00019452,2]
[370179988,1751909443056,-460.0,0.00019452,2]
[370179990,1751909443066,-460.0,0.00019452,2]
[370179992,1751909443076,-460.0,0.00019452,2]
[370179993,1751909443086,-460.0,0.00019452,2]
[370179995,1751909443096,-495.07,0.00019452,2]
[370179997,1751909443105,-460.0,0.00019452,2]
[370179999,1751909443116,-460.0,0.00019452,2]
[370180001,1751909443126,-779.09,0.00019452,2]
[370180003,1751909443135,-460.0,0.00019452,2]
[370180005,1751909443144,-684.49,0.00019452,2]
[370180007,1751909443154,-460.0,0.00019452,2]
[370180009,1751909443163,-500.0,0.00019479,2]
[370180011,1751909443172,-500.0,0.00019507,2]
[370180013,1751909443181,-183.0,0.00019534,2]
[370180015,1751909443190,-999.65381348,0.00019626,2]
[370180017,1751909443202,-192.06317993,0.000197,2]
[370180019,1751909443212,-188.1493034,0.000197,2]
[370180021,1751909443221,-171.52536177,0.000197,2]
[370180023,1751909443231,-160.0,0.00019711,2]
[370180025,1751909443240,-160.0,0.00019711,2]
[370180027,1751909443251,-160.0,0.00019711,2]
[370180029,1751909443260,-215.21338352,0.00019711,2]
[370180031,1751909443270,-160.0,0.00019711,2]
[370180033,1751909443279,-848.27993403,0.00019711,2]
[370180035,1751909443288,-214.06929976,0.00019711,2]
[370180037,1751909443298,-12584.46609586,0.00019711,2]
[370180039,1751909443307,-230.48668418,0.00019711,2]
[370180041,1751909443316,-837.79946008,0.00019711,2]
[370180043,1751909443325,-500.0,0.00019725,2]
[370180044,1751909443334,-493.21712756,0.00019726,2]
[370180047,1751909443344,-460.0,0.00019726,2]
[370180048,1751909443354,-460.0,0.00019726,2]
[370180051,1751909443365,-460.0,0.00019726,2]
[370180053,1751909443375,-460.0,0.00019726,2]
[370180055,1751909443384,-460.0,0.00019726,2]
[370180057,1751909443394,-460.0,0.00019726,2]
[370180059,1751909443404,-460.0,0.00019726,2]
[370180061,1751909443413,-460.0,0.00019726,2]
[370180063,1751909443423,-460.0,0.00019726,2]
[370180065,1751909443432,-730.18,0.00019726,2]
[370180067,1751909443442,-460.0,0.00019726,2]
[370180068,1751909443453,-460.0,0.00019726,2]
[370180070,1751909443462,-460.0,0.00019726,2]
[370180072,1751909443471,-460.0,0.00019726,2]
[370180074,1751909443480,-1038.05,0.00019726,2]
[370180076,1751909443489,-460.0,0.00019726,2]
[370180078,1751909443498,-649.65,0.00019726,2]
[370180080,1751909443507,-346.65,0.00019726,2]
[370180082,1751909443518,-460.0,0.00019726,2]
[370180084,1751909443528,-617.68,0.00019726,2]
[370180086,1751909443537,-460.0,0.00019726,2]
[370180088,1751909443546,-460.0,0.00019726,2]
[370180090,1751909443555,-460.0,0.00019726,2]
[370180092,1751909443564,-460.0,0.00019726,2]
[370180094,1751909443573,-460.0,0.00019726,2]
[370180096,1751909443582,-460.0,0.00019726,2]
[370180098,1751909443591,-460.0,0.00019726,2]
[370180100,1751909443601,-460.0,0.00019726,2]
[370180102,1751909443613,-460.0,0.00019726,2]
[370180104,1751909443623,-460.0,0.00019726,2]
[370180106,1751909443633,-757.37,0.00019726,2]
[370180108,1751909443642,-639.94,0.00019726,2]
[370180110,1751909443653,-690.75,0.00019726,2]
[370180112,1751909443662,-460.0,0.00019726,2]
[370180115,1751909443674,-460.0,0.00019726,2]
[370180117,1751909443686,-460.0,0.00019726,2]
[370180119,1751909443697,-666.45,0.00019726,2]
[370180120,1751909443708,-460.0,0.00019726,2]
[370180122,1751909443717,-460.0,0.00019726,2]
[370180124,1751909443727,-1337.48,0.00019726,2]
[370180126,1751909443736,-4110.19,0.00019726,2]
[370180128,1751909443745,-460.0,0.00019726,2]
[370180130,1751909443755,-460.0,0.00019726,2]
[370180132,1751909443764,-1474.12,0.00019726,2]
[370180134,1751909443774,-460.0,0.00019726,2]
[370180136,1751909443783,-460.0,0.00019726,2]
[370180138,1751909443792,-460.0,0.00019726,2]
[370180140,1751909443802,-460.0,0.00019726,2]
[370180142,1751909443811,-941.23,0.00019726,2]
[370180144,1751909443821,-1566.42,0.00019726,2]
[370180146,1751909443831,-460.0,0.00019726,2]
[370180148,1751909443841,-460.0,0.00019726,2]
[370180150,1751909443850,-460.0,0.00019726,2]
[370180151,1751909443860,-460.0,0.00019726,2]
[370180152,1751909443869,-460.0,0.00019726,2]
[370180153,1751909443879,-460.0,0.00019726,2]
[370180154,1751909443889,-779.09,0.00019726,2]
[370180155,1751909443898,-684.49,0.00019726,2]
[370180156,1751909443907,-460.0,0.00019763,2]
[370180158,1751909443917,-579.61002683,0.00019763,2]
[370180160,1751909443926,-500.0,0.00019763,2]
[370180162,1751909443935,-606.57,0.00019763,2]
[370180164,1751909443944,-460.0,0.00019763,2]
[370180166,1751909443956,-1018.21355739,0.000199,2]
[370180168,1751909443966,-500.0,0.00019999,2]
[370180170,1751909443975,-460.0,0.0002,2]
[370180172,1751909443984,-460.0,0.0002,2]
[370180187,1751909444109,-460.0,0.0002,2]
[370180189,1751909444119,-730.18,0.0002,2]
[370180191,1751909444130,-460.0,0.0002,2]
[370180193,1751909444140,-1038.05,0.0002,2]
[370180195,1751909444149,-460.0,0.0002,2]
[370180197,1751909444159,-649.65,0.0002,2]
[370180199,1751909444168,-617.68,0.0002,2]
[370180201,1751909444178,-460.0,0.0002,2]
[370180203,1751909444188,-460.0,0.0002,2]
[370180205,1751909444197,-757.37,0.0002,2]
[370180207,1751909444211,-639.94,0.0002,2]
[370180209,1751909444220,-690.75,0.0002,2]
[370180211,1751909444229,-460.0,0.0002,2]
[370180213,1751909444239,-460.0,0.0002,2]
[370180215,1751909444248,-666.45,0.0002,2]
[370180217,1751909444257,-460.0,0.0002,2]
[370180219,1751909444266,-1337.48,0.0002,2]
[370180221,1751909444275,-4110.19,0.0002,2]
[370180223,1751909444284,-460.0,0.0002,2]
[370180225,1751909444293,-460.0,0.0002,2]
[370180227,1751909444303,-1474.12,0.0002,2]
[370180228,1751909444312,-460.0,0.0002,2]
[370180230,1751909444321,-460.0,0.0002,2]
[370180232,1751909444331,-584.95687514,0.0002,2]
[370180234,1751909444340,-941.23,0.0002,2]
[370180236,1751909444350,-1566.42,0.0002,2]
[370180238,1751909444359,-460.0,0.0002,2]
[370180240,1751909444368,-460.0,0.0002,2]
[370180242,1751909444378,-460.0,0.0002,2]
[370180245,1751909444388,-460.0,0.0002,2]
[370180247,1751909444398,-779.09,0.0002,2]
[370180249,1751909444407,-684.49,0.0002,2]
[370180251,1751909444416,-500.0,0.0002001,2]
[370180253,1751909444425,-606.57,0.00020037,2]
[370180255,1751909444435,-460.0,0.00020037,2]
[370180257,1751909444444,-1018.21355711,0.00020107,2]
[370180259,1751909444456,-500.0,0.00020272,2]
[370180261,1751909444465,-460.0,0.00020273,2]
[370180263,1751909444475,-460.0,0.00020273,2]
[370180265,1751909444484,-460.0,0.00020273,2]
[370180267,1751909444494,-730.18,0.00020273,2]
[370180269,1751909444504,-460.0,0.00020273,2]
[370180271,1751909444513,-1038.05,0.00020273,2]
[370180273,1751909444522,-352.05,0.00020273,2]
[370180275,1751909444531,-649.65,0.00020273,2]
[370180277,1751909444541,-617.68,0.00020273,2]
[370180279,1751909444551,-460.0,0.00020273,2]
[370180281,1751909444560,-460.0,0.00020273,2]
[370180282,1751909444569,-757.37,0.00020273,2]
[370180284,1751909444578,-639.94,0.00020273,2]
[370180286,1751909444587,-690.75,0.00020273,2]
[370180288,1751909444597,-460.0,0.00020273,2]
[370180290,1751909444609,-460.0,0.00020273,2]
[370180292,1751909444619,-666.45,0.00020273,2]
[370180294,1751909444628,-601.67,0.00020273,2]
[370180296,1751909444638,-1337.48,0.00020273,2]
[370180298,1751909444647,-4110.19,0.00020273,2]
[370180300,1751909444657,-550.74,0.00020273,2]
[370180302,1751909444666,-460.0,0.00020273,2]
[370180304,1751909444676,-1474.12,0.00020273,2]
[370180306,1751909444687,-460.0,0.00020273,2]
[370180308,1751909444696,-460.0,0.00020273,2]
[370180311,1751909444710,-941.23,0.00020273,2]
[370180312,1751909444719,-1566.42,0.00020273,2]
[370180314,1751909444728,-460.0,0.00020273,2]
[370180316,1751909444738,-460.0,0.00020273,2]
[370180318,1751909444747,-460.0,0.00020273,2]
[370180320,1751909444757,-480.86997316,0.00020273,2]
[370180322,1751909444766,-779.09,0.00020273,2]
[370180325,1751909444776,-684.49,0.00020273,2]
[370180326,1751909444786,-606.57,0.00020311,2]
[370180329,1751909444795,-1018.21355711,0.00020314,3]
[370180330,1751909444804,-151.0,0.00020356,2]
[370180332,1751909444814,-1018.21355711,0.00020521,3]
[370180335,1751909444823,-500.0,0.00020546,2]
[370180336,1751909444833,-249.53876732,0.00020547,2]
[370180338,1751909444842,-460.0,0.00020547,2]
[370180341,1751909444852,-500.0,0.00020547,14]
[370180342,1751909444861,-460.0,0.00020547,2]
[370180345,1751909444871,-730.18,0.00020547,2]
[370180346,1751909444880,-460.0,0.00020547,2]
[370180348,1751909444890,-1038.05,0.00020547,2]
[370180350,1751909444899,-649.65,0.00020547,2]
[370180352,1751909444908,-617.68,0.00020547,2]
[370180354,1751909444917,-460.0,0.00020547,2]
[370180356,1751909444927,-460.0,0.00020547,2]
[370180358,1751909444936,-757.37,0.00020547,2]
[370180360,1751909444945,-639.94,0.00020547,2]
[370180363,1751909444959,-690.75,0.00020547,2]
[370180365,1751909444968,-460.0,0.00020547,2]
[370180367,1751909444978,-460.0,0.00020547,2]
[370180369,1751909444987,-666.45,0.00020547,2]
[370180371,1751909444997,-1337.48,0.00020547,2]
[370180373,1751909445006,-4110.19,0.00020547,2]
[370180375,1751909445016,-460.0,0.00020547,2]
[370180377,1751909445026,-1474.12,0.00020547,2]
[370180379,1751909445035,-460.0,0.00020547,2]
[370180381,1751909445044,-460.0,0.00020547,2]
[370180383,1751909445054,-941.23,0.00020547,2]
[370180385,1751909445063,-1566.42,0.00020547,2]
[370180387,1751909445071,-460.0,0.00020547,2]
[370180389,1751909445081,-460.0,0.00020547,2]
[370180391,1751909445091,-460.0,0.00020547,2]
[370180393,1751909445100,-779.09,0.00020547,2]
[370180395,1751909445109,-684.49,0.00020547,2]
[370180397,1751909445118,-500.0,0.00020584,2]
[370180398,1751909445127,-606.57,0.00020585,2]
[370180400,1751909445136,-380.043,0.00020632,2]
[370180402,1751909445145,-220.0,0.00020667,2]
[370180405,1751909445155,-174.7,0.00020679,4]
[370180406,1751909445165,-220.0,0.00020695,2]
[370180408,1751909445174,-1018.21355711,0.00020728,3]
[370180410,1751909445184,-150.0,0.00020799,2]
[370180412,1751909445193,-500.0,0.0002082,2]
[370180414,1751909445205,-460.0,0.00020821,2]
[370180416,1751909445215,-566.49537864,0.00020821,2]
[370180418,1751909445227,-730.18,0.00020821,2]
[370180420,1751909445236,-460.0,0.00020821,2]
[370180423,1751909445246,-1038.05,0.00020821,2]
[370180425,1751909445256,-649.65,0.00020821,2]
[370180426,1751909445264,-617.68,0.00020821,2]
[370180428,1751909445274,-460.0,0.00020821,2]
[370180430,1751909445283,-460.0,0.00020821,2]
[370180433,1751909445293,-757.37,0.00020821,2]
[370180435,1751909445303,-639.94,0.00020821,2]
[370180437,1751909445313,-690.75,0.00020821,2]
[370180439,1751909445322,-460.0,0.00020821,2]
[370180441,1751909445331,-460.0,0.00020821,2]
[370180442,1751909445341,-666.45,0.00020821,2]
[370180445,1751909445350,-1337.48,0.00020821,2]
[370180447,1751909445363,-4110.19,0.00020821,2]
[370180449,1751909445376,-460.0,0.00020821,2]
[370180452,1751909445391,-1474.12,0.00020821,2]
[370180454,1751909445404,-460.0,0.00020821,2]
[370180456,1751909445419,-460.0,0.00020821,2]
[370180459,1751909445430,-941.23,0.00020821,2]
[370180461,1751909445441,-1566.42,0.00020821,2]
[370180463,1751909445456,-460.0,0.00020821,2]
[370180465,1751909445468,-460.0,0.00020821,2]
[370180468,1751909445480,-460.0,0.00020821,2]
[370180470,1751909445492,-779.09,0.00020821,2]
[370180472,1751909445504,-684.49,0.00020821,2]
[370180476,1751909445518,-606.57,0.00020859,2]
[370180478,1751909445529,-1018.21355711,0.00020934,4]
[370180480,1751909445541,-967.0,0.00020941,2]
[370180482,1751909445554,-500.0,0.00021094,2]
[370180485,1751909445566,-155.0,0.00021095,2]
[370180487,1751909445578,-460.0,0.00021095,2]
[370180489,1751909445589,-500.0,0.00021095,15]
[370180492,1751909445602,-730.18,0.00021095,2]
[370180494,1751909445615,-460.0,0.00021095,2]
[370180496,1751909445627,-1038.05,0.00021095,2]
[370180498,1751909445637,-649.65,0.00021095,2]
[370180500,1751909445650,-617.68,0.00021095,2]
[370180503,1751909445663,-460.0,0.00021095,2]
[370180505,1751909445675,-460.0,0.00021095,2]
[370180507,1751909445686,-757.37,0.00021095,2]
[370180509,1751909445698,-639.94,0.00021095,2]
[370180512,1751909445711,-690.75,0.00021095,2]
[370180514,1751909445721,-460.0,0.00021095,2]
[370180516,1751909445732,-460.0,0.00021095,2]
[370180518,1751909445743,-666.45,0.00021095,2]
[370180520,1751909445755,-1337.48,0.00021095,2]
[370180523,1751909445768,-4110.19,0.00021095,2]
[370180525,1751909445780,-460.0,0.00021095,2]
[370180527,1751909445793,-1474.12,0.00021095,2]
[370180529,1751909445804,-460.0,0.00021095,2]
[370180532,1751909445817,-176.35,0.00021095,2]
[370180534,1751909445830,-941.23,0.00021095,2]
[370180537,1751909445842,-1566.42,0.00021095,2]
[370180539,1751909445855,-460.0,0.00021095,2]
[370180541,1751909445868,-460.0,0.00021095,2]
[370180543,1751909445878,-460.0,0.00021095,2]
[370180546,1751909445889,-684.49,0.00021095,2]
[370180548,1751909445899,-779.09,0.00021095,2]
[370180550,1751909445909,-174.7,0.00021117,4]
[370180552,1751909445919,-606.57,0.00021133,2]
[370180554,1751909445932,-151.0,0.00021133,2]
[370180557,1751909445945,-151.0,0.00021133,2]
[370180559,1751909445960,-151.0,0.00021133,2]
[370180561,1751909445972,-244.863188,0.00021133,2]
[370180563,1751909445982,-151.0,0.00021133,2]
[370180565,1751909445993,-151.0,0.00021133,2]
[370180568,1751909446004,-151.0,0.00021133,2]
[370180570,1751909446015,-151.0,0.00021133,2]
[370180572,1751909446027,-210.2174,0.00021133,2]
[370180574,1751909446038,-151.0,0.00021133,2]
[370180576,1751909446048,-1018.21355711,0.00021141,4]
[370180579,1751909446059,-1018.21355711,0.00021348,5]
[370180581,1751909446069,-500.0,0.00021358,2]
[370180583,1751909446080,-500.0,0.00021368,2]
[370180585,1751909446091,-460.0,0.00021369,2]
[370180587,1751909446102,-151.0,0.00021369,2]
[370180589,1751909446113,-151.0,0.00021369,2]
[370180592,1751909446123,-730.18,0.00021369,2]
[370180594,1751909446135,-460.0,0.00021369,2]
[370180596,1751909446146,-1038.05,0.00021369,2]
[370180598,1751909446156,-649.65,0.00021369,2]
[370180600,1751909446167,-617.68,0.00021369,2]
[370180602,1751909446178,-460.0,0.00021369,2]
[370180605,1751909446188,-460.0,0.00021369,2]
[370180607,1751909446202,-757.37,0.00021369,2]
[370180609,1751909446214,-639.94,0.00021369,2]
[370180611,1751909446224,-690.75,0.00021369,2]
[370180613,1751909446235,-460.0,0.00021369,2]
[370180616,1751909446246,-460.0,0.00021369,2]
[370180618,1751909446257,-666.45,0.00021369,2]
[370180620,1751909446268,-1337.48,0.00021369,2]
[370180622,1751909446279,-4110.19,0.00021369,2]
[370180624,1751909446290,-460.0,0.00021369,2]
[370180626,1751909446301,-1474.12,0.00021369,2]
[370180629,1751909446312,-460.0,0.00021369,2]
[370180631,1751909446322,-941.23,0.00021369,2]
[370180633,1751909446333,-1566.42,0.00021369,2]
[370180635,1751909446344,-460.0,0.00021369,2]
[370180637,1751909446355,-460.0,0.00021369,2]
[370180640,1751909446366,-460.0,0.00021369,2]
[370180642,1751909446377,-684.49,0.00021369,2]
[370180644,1751909446388,-779.09,0.00021369,2]
[370180646,1751909446398,-606.57,0.00021407,2]
[370180648,1751909446409,-150.0,0.000215,30]
[370180650,1751909446420,-503.98954517,0.00021506,2]
[370180652,1751909446430,-151.0,0.00021555,2]
[370180655,1751909446440,-151.0,0.00021555,2]
[370180657,1751909446453,-151.0,0.00021555,2]
[370180659,1751909446464,-151.0,0.00021555,2]
[370180661,1751909446475,-151.0,0.00021555,2]
[370180663,1751909446485,-151.0,0.00021555,2]
[370180665,1751909446496,-174.7,0.00021555,5]
[370180668,1751909446509,-151.0,0.00021555,2]
[370180670,1751909446520,-248.990984,0.00021555,2]
[370180672,1751909446530,-248.990984,0.00021555,2]
[370180674,1751909446541,-151.0,0.00021555,2]
[370180676,1751909446552,-1018.21355711,0.00021555,5]
[370180679,1751909446563,-220.0,0.00021589,2]
[370180681,1751909446574,-491.3,0.00021642,2]
[370180683,1751909446586,-12889.33866,0.00021642,2]
[370180685,1751909446599,-460.0,0.00021643,2]
[370180687,1751909446610,-151.0,0.00021643,2]
[370180689,1751909446621,-151.0,0.00021643,2]
[370180691,1751909446631,-167.163414,0.00021643,2]
[370180693,1751909446643,-167.163414,0.00021643,2]
[370180696,1751909446654,-157.8,0.00021643,16]
[370180698,1751909446665,-151.0,0.00021643,2]
[370180700,1751909446677,-151.0,0.00021643,2]
[370180702,1751909446687,-730.18,0.00021643,2]
[370180704,1751909446698,-460.0,0.00021643,2]
[370180707,1751909446710,-1038.05,0.00021643,2]
[370180709,1751909446721,-649.65,0.00021643,2]
[370180711,1751909446733,-617.68,0.00021643,2]
[370180713,1751909446744,-460.0,0.00021643,2]
[370180715,1751909446757,-288.42,0.00021643,2]
[370180718,1751909446769,-757.37,0.00021643,2]
[370180720,1751909446778,-639.94,0.00021643,2]
[370180722,1751909446788,-690.75,0.00021643,2]
[370180724,1751909446797,-460.0,0.00021643,2]
[370180726,1751909446806,-460.0,0.00021643,2]
[370180728,1751909446816,-666.45,0.00021643,2]
[370180730,1751909446825,-1337.48,0.00021643,2]
[370180751,1751909447010,-4110.19,0.00021643,2]
[370180754,1751909447022,-460.0,0.00021643,2]
[370180756,1751909447032,-1474.12,0.00021643,2]
[370180758,1751909447041,-460.0,0.00021643,2]
[370180760,1751909447050,-941.23,0.00021643,2]
[370180762,1751909447059,-1566.42,0.00021643,2]
[370180764,1751909447068,-460.0,0.00021643,2]
[370180766,1751909447076,-460.0,0.00021643,2]
[370180768,1751909447085,-460.0,0.00021643,2]
[370180770,1751909447094,-684.49,0.00021643,2]
[370180772,1751909447103,-779.09,0.00021643,2]
[370180773,1751909447112,-606.57,0.00021681,2]
[370180775,1751909447122,-220.0,0.00021711,2]
[370180777,1751909447133,-220.0,0.00021742,2]
[370180779,1751909447145,-1018.21355711,0.00021762,5]
[370180782,1751909447159,-151.0,0.00021831,2]
[370180784,1751909447172,-220.0,0.00021861,2]
[370180786,1751909447185,-220.0,0.00021914,2]
[370180788,1751909447194,-1317.884116,0.00021917,4]
[370180790,1751909447204,-460.0,0.00021917,2]
[370180791,1751909447214,-730.18,0.00021917,2]
[370180793,1751909447223,-460.0,0.00021917,2]
[370180795,1751909447232,-1038.05,0.00021917,2]
[370180797,1751909447241,-649.65,0.00021917,2]
[370180799,1751909447250,-617.68,0.00021917,2]
[370180801,1751909447260,-460.0,0.00021917,2]
[370180803,1751909447269,-757.37,0.00021917,2]
[370180805,1751909447278,-639.94,0.00021917,2]
[370180807,1751909447287,-690.75,0.00021917,2]
[370180810,1751909447296,-460.0,0.00021917,2]
[370180812,1751909447305,-460.0,0.00021917,2]
[370180814,1751909447314,-666.45,0.00021917,2]
[370180815,1751909447323,-1337.48,0.00021917,2]
[370180817,1751909447333,-4110.19,0.00021917,2]
[370180819,1751909447342,-321.11,0.00021917,2]
[370180821,1751909447351,-1474.12,0.00021917,2]
[370180823,1751909447359,-460.0,0.00021917,2]
[370180825,1751909447369,-941.23,0.00021917,2]
[370180827,1751909447378,-1566.42,0.00021917,2]
[370180829,1751909447387,-460.0,0.00021917,2]
[370180831,1751909447396,-460.0,0.00021917,2]
[370180833,1751909447406,-460.0,0.00021917,2]
[370180836,1751909447417,-684.49,0.00021917,2]
[370180837,1751909447429,-779.09,0.00021917,2]
[370180839,1751909447442,-151.0,0.00021918,2]
[370180842,1751909447466,-500.0,0.00021918,2]
[370180844,1751909447494,-500.0,0.00021918,2]
[370180846,1751909447521,-500.0,0.00021918,2]
[370180848,1751909447533,-500.0,0.00021918,2]
[370180850,1751909447541,-470.98918435,0.00021918,2]
[370180852,1751909447550,-606.57,0.00021955,2]
[370180854,1751909447560,-1018.21355711,0.00021969,6]
[370180856,1751909447569,-174.7,0.00021994,5]
[370180858,1751909447578,-5408.65225445,0.00022,7]
[370180860,1751909447588,-151.0,0.00022,7]
[370180862,1751909447598,-151.0,0.00022,7]
[370180864,1751909447611,-166.0,0.00022,2]
[370180866,1751909447620,-168.0,0.00022017,2]
[370180868,1751909447630,-168.0,0.0002202,2]
[370180870,1751909447639,-220.0,0.00022046,2]
[370180872,1751909447649,-220.0,0.00022049,2]
[370180873,1751909447658,-172.638119,0.0002208,7]
[370180875,1751909447667,-220.0,0.00022105,2]
[370180877,1751909447678,-999.65381347,0.00022161,2]
[370180879,1751909447688,-168.0,0.00022164,2]
[370180881,1751909447697,-1018.21355711,0.00022176,6]
[370180883,1751909447708,-460.0,0.00022191,2]
[370180886,1751909447717,-730.18,0.00022191,2]
[370180888,1751909447727,-460.0,0.00022191,2]
[370180890,1751909447736,-1038.05,0.00022191,2]
[370180892,1751909447745,-649.65,0.00022191,2]
[370180894,1751909447754,-617.68,0.00022191,2]
[370180896,1751909447763,-460.0,0.00022191,2]
[370180898,1751909447773,-757.37,0.00022191,2]
[370180900,1751909447782,-639.94,0.00022191,2]
[370180902,1751909447792,-690.75,0.00022191,2]
[370180904,1751909447803,-460.0,0.00022191,2]
[370180906,1751909447813,-460.0,0.00022191,2]
[370180908,1751909447822,-666.45,0.00022191,2]
[370180910,1751909447832,-1337.48,0.00022191,2]
[370180912,1751909447843,-4110.19,0.00022191,2]
[370180914,1751909447853,-1474.12,0.00022191,2]
[370180916,1751909447862,-460.0,0.00022191,2]
[370180918,1751909447871,-941.23,0.00022191,2]
[370180920,1751909447880,-1566.42,0.00022191,2]
[370180922,1751909447889,-460.0,0.00022191,2]
[370180924,1751909447898,-314.77552169,0.00022191,2]
[370180926,1751909447908,-460.0,0.00022191,2]
[370180928,1751909447919,-684.49,0.00022191,2]
[370180930,1751909447928,-779.09,0.00022191,2]
[370180932,1751909447937,-166.0,0.00022192,7]
[370180934,1751909447947,-606.57,0.00022229,2]
[370180935,1751909447957,-151.0,0.00022229,7]
[370180937,1751909447967,-151.0,0.00022229,7]
[370180940,1751909447977,-220.0,0.00022267,2]
[370180941,1751909447987,-429.60078,0.00022279,7]
[370180943,1751909447997,-429.60078,0.00022279,7]
[370180945,1751909448007,-168.0,0.00022285,2]
[370180947,1751909448016,-655.74004362,0.000223,2]
[370180949,1751909448025,-225.0,0.00022351,2]
[370180950,1751909448035,-220.0,0.00022381,2]
[370180951,1751909448045,-1018.21355711,0.00022383,7]
[370180952,1751909448055,-151.0,0.00022383,7]
[370180953,1751909448065,-151.0,0.00022383,7]
[370180954,1751909448075,-151.0,0.00022383,7]
[370180955,1751909448084,-151.0,0.00022383,7]
[370180956,1751909448094,-151.0,0.00022383,7]
[370180957,1751909448103,-168.0,0.00022389,2]
[370180958,1751909448114,-151.0,0.00022411,7]
[370180959,1751909448124,-151.0,0.00022415,7]
[370180960,1751909448133,-151.0,0.00022415,7]
[370180962,1751909448142,-848.27993403,0.0002242,7]
[370180963,1751909448151,-160.0,0.0002242,7]
[370180965,1751909448162,-1839.77,0.00022425,4]
[370180967,1751909448172,-174.7,0.00022432,5]
[370180969,1751909448182,-225.0,0.00022454,2]
[370180971,1751909448191,-500.0,0.00022464,10]
[370180973,1751909448202,-500.0,0.00022464,10]